bitfinex-derivatives/quotes_SOLF0:USTF0_20250623
["timestamp","ask_amount","ask_price","bid_price","bid_amount"]
[1750718809226,9.7640349,144.37,144.29,2.3319]
[1750718809537,9.7640349,144.34,144.24,2.2471]
[1750718809730,9.7640349,144.34,144.24,4.579]
[1750718809934,6.9255,144.29,144.24,11.5066]
[1750718810135,9.7640349,144.34,144.24,4.579]
[1750718810835,9.7640349,144.32,144.24,4.579]
[1750718811033,6.9277,144.24,144.23,173.4823]
[1750718811236,9.7640349,144.3,144.19,2.3319]
[1750718811237,9.7640349,144.28,144.19,2.3319]
[1750718811429,63.0321,144.3,144.19,12.0959349]
[1750718811630,63.0321,144.3,144.21,9.7640349]
[1750718811943,63.0321,144.3,144.19,12.0959349]
[1750718812130,63.0321,144.3,144.2,6.9291]
[1750718812332,63.0321,144.3,144.19,12.0959349]
[1750718812538,6.9266,144.27,144.23,6.9281]
[1750718812935,63.0321,144.3,144.21,9.7640349]
[1750718813137,6.9266,144.27,144.22,6.9283]
[1750718813439,63.0321,144.3,144.21,9.7640349]
[1750718813734,6.9264,144.27,144.22,6.9286]
[1750718814441,6.9258,144.28,144.23,6.9277]
[1750718814640,58.54,144.3,144.2,9.7640349]
[1750718815138,6.9267,144.27,144.22,6.9285]
[1750718816034,68.3040349,144.33,144.22,9.7640349]
[1750718816540,6.926,144.28,144.23,6.9278]
[1750718816734,68.3040349,144.33,144.23,6.9278]
[1750718816938,68.3040349,144.33,144.24,6.9276]
[1750718817129,68.3040349,144.33,144.22,9.7640349]
[1750718817330,9.7640349,144.31,144.2,6.10222424]
[1750718817536,58.54,144.33,144.19,18.24405388]
[1750718817537,9.80992964,144.29,144.19,18.24405388]
[1750718817833,9.80992964,144.29,144.18,234.2303]
[1750718817834,9.80992964,144.25,144.18,2.2065]
[1750718818035,6.9292,144.21,144.18,2.2065]
[1750718818248,58.54,144.26,144.18,2.2065]
[1750718818738,6.9294,144.21,144.18,2.2065]
[1750718819441,58.54,144.26,144.18,2.2065]
[1750718819934,9.80992964,144.23,144.12,9.80992964]
[1750718820135,9.82050615,144.22,144.13,9.82050615]
[1750718820342,2.81236565,144.25,144.13,9.82050615]
[1750718820343,6.9314,144.17,144.13,9.82050615]
[1750718820644,68.36050615,144.26,144.14,6.10222424]
[1750718820846,6.9299,144.2,144.15,75.29230615]
[1750718821041,68.36050615,144.26,144.16,2.4051]
[1750718821042,58.54,144.26,144.16,2.4051]
[1750718821240,58.54,144.26,144.17,180.60050615]
[1750718821430,58.54,144.26,144.17,189.76250615]
[1750718821637,2.3183,144.27,144.19,9.82050615]
[1750718821944,68.36050615,144.3,144.17,179.11322424]
[1750718821945,58.54,144.3,144.21,9.82050615]
[1750718822437,6.927,144.26,144.22,6.9284]
[1750718822743,6.927,144.26,144.21,9.82050615]
[1750718822744,58.54,144.34,144.24,9.82050615]
[1750718822941,58.54,144.34,144.26,16.74710615]
[1750718823245,6.9921,144.35,144.26,9.82050615]
[1750718823545,58.54,144.38,144.28,9.82050615]
[1750718823735,58.54,144.38,144.3,9.82050615]
[1750718824747,6.9227,144.35,144.31,6.9243]
[1750718825143,68.36050615,144.41,144.3,68.36050615]
[1750718825442,6.9228,144.35,144.31,6.9242]
[1750718825641,68.36050615,144.41,144.3,68.36050615]
[1750718825833,68.36050615,144.41,144.3,75.28510615]
[1750718826034,9.82050615,144.39,144.3,58.54]
[1750718826340,68.36050615,144.41,144.3,68.36050615]
[1750718826541,58.54,144.41,144.3,68.36050615]
[1750718827143,58.54,144.41,144.3,58.54]
[1750718827343,58.54,144.41,144.31,9.82050615]
[1750718827841,68.36050615,144.41,144.3,58.54]
[1750718828249,58.54,144.41,144.3,58.54]
[1750718828545,68.36050615,144.41,144.3,58.54]
[1750718828844,9.82050615,144.39,144.3,58.54]
[1750718829241,68.36050615,144.41,144.3,68.36050615]
[1750718830854,9.82050615,144.39,144.3,58.54]
[1750718831154,58.54,144.41,144.3,68.36050615]
[1750718831452,58.54,144.41,144.32,9.82050615]
[1750718831749,6.9218,144.37,144.32,16.74430615]
[1750718831952,7.0246,144.43,144.3,58.54]
[1750718832150,7.0246,144.43,144.36,9.82050615]
[1750718832650,57.74,144.46,144.35,57.74]
[1750718832851,6.9185,144.43,144.39,6.9201]
[1750718833052,7.0102,144.49,144.4,9.82050615]
[1750718833549,7.0102,144.49,144.36,74.45520615]
[1750718833550,9.82050615,144.47,144.36,74.45520615]
[1750718834250,7.0102,144.49,144.4,9.82050615]
[1750718834948,6.9167,144.47,144.42,9.82050615]
[1750718835252,4.6058,144.49,144.42,9.82050615]
[1750718835755,6.9176,144.45,144.42,9.82050615]
[1750718836047,6.9176,144.45,144.41,6.9191]
[1750718836442,9.82050615,144.47,144.36,74.45520615]
[1750718836847,2.4035,144.48,144.39,9.82050615]
[1750718837350,12.22400615,144.48,144.37,9.82050615]
[1750718837851,2.4035,144.48,144.37,9.82050615]
[1750718838054,6.9185,144.44,144.37,9.82050615]
[1750718838254,2.4035,144.48,144.37,9.82050615]
[1750718838459,12.22400615,144.48,144.37,9.82050615]
[1750718838754,6.9183,144.44,144.4,6.9199]
[1750718838949,2.4035,144.48,144.37,9.82050615]
[1750718839157,6.9179,144.45,144.39,9.82050615]
[1750718839353,6.9179,144.45,144.41,6.9191]
[1750718839859,6.9172,144.46,144.39,9.82050615]
[1750718840047,6.9172,144.46,144.41,6.9195]
[1750718840246,9.82050615,144.47,144.3,6.10222424]
[1750718840451,9.82050615,144.47,144.35,16.67640615]
[1750718840851,9.82050615,144.45,144.35,6.8559]
[1750718841051,67.54050615,144.45,144.35,6.8559]
[1750718841247,57.72,144.45,144.36,6.9218]
[1750718841553,57.72,144.45,144.35,6.8559]
[1750718841855,67.54050615,144.45,144.36,6.9217]
[1750718842055,9.82050615,144.43,144.35,4.5264]
[1750718842459,6.9204,144.4,144.36,6.9219]
[1750718842757,9.82050615,144.44,144.35,4.5264]
[1750718843160,6.9191,144.42,144.35,4.5264]
[1750718843355,9.82050615,144.44,144.35,4.5264]
[1750718843551,57.72,144.45,144.35,4.5264]
[1750718843757,12.22400615,144.48,144.38,9.82050615]
[1750718843960,4.6058,144.49,144.39,59.9304]
[1750718844150,9.82050615,144.5,144.4,169.7]
[1750718844647,6.9157,144.49,144.4,169.7]
[1750718845060,6.9157,144.49,144.44,6.9177]
[1750718845252,9.82050615,144.52,144.41,9.82050615]
[1750718845466,6.9153,144.5,144.43,9.82050615]
[1750718845752,9.82050615,144.54,144.45,6.9173]
[1750718845957,9.82050615,144.54,144.43,9.82050615]
[1750718846547,7.0918,144.56,144.43,9.82050615]
[1750718846752,9.82050615,144.53,144.43,9.82050615]
[1750718847055,67.52050615,144.55,144.44,57.7]
[1750718848260,67.52050615,144.55,144.47,6.9165]
[1750718848647,6.9147,144.52,144.47,6.9165]
[1750718849162,6.9148,144.51,144.45,9.82050615]
[1750718849457,57.7,144.55,144.45,9.82050615]
[1750718849654,57.7,144.55,144.48,6.9158]
[1750718849856,57.7,144.55,144.45,9.82050615]
[1750718850055,67.52050615,144.55,144.44,67.52050615]
[1750718850259,6.9147,144.52,144.44,67.52050615]
[1750718850561,57.7,144.55,144.46,9.82050615]
[1750718850762,57.7,144.55,144.48,6.9158]
[1750718851254,57.7,144.55,144.46,9.82050615]
[1750718851660,57.7,144.55,144.44,57.7]
[1750718851871,57.7,144.55,144.46,9.82050615]
[1750718852361,57.7,144.55,144.44,57.7]
[1750718852554,57.7,144.55,144.47,9.82050615]
[1750718852760,6.9135,144.54,144.47,9.82050615]
[1750718852952,57.7,144.55,144.47,9.82050615]
[1750718853152,67.52050615,144.55,144.42,4.5189]
[1750718853352,9.82050615,144.51,144.39,12.03090615]
[1750718853559,9.82050615,144.51,144.41,9.82050615]
[1750718854362,6.9161,144.48,144.41,9.82050615]
[1750718854559,9.82050615,144.51,144.41,9.82050615]
[1750718855263,9.82050615,144.51,144.44,6.9181]
[1750718855665,6.9157,144.49,144.45,6.9174]
[1750718856161,6.9153,144.5,144.46,6.9166]
[1750718856364,9.82050615,144.53,144.41,9.82050615]
[1750718856658,6.9158,144.49,144.45,6.9172]
[1750718857056,67.52050615,144.55,144.42,9.82050615]
[1750718857258,57.7,144.55,144.45,9.82050615]
[1750718857763,6.9138,144.53,144.45,9.82050615]
[1750718858066,57.7,144.55,144.45,9.82050615]
[1750718858659,6.9141,144.53,144.49,6.9155]
[1750718858859,57.7,144.55,144.45,9.82050615]
[1750718859256,57.7,144.55,144.47,9.82050615]
[1750718859658,57.7,144.55,144.45,169.0]
[1750718859659,7.0918,144.56,144.49,9.82050615]
[1750718860166,7.0918,144.56,144.53,6.9136]
[1750718860364,14.0042,144.56,144.49,9.82050615]
[1750718860565,7.0918,144.56,144.49,9.82050615]
[1750718860960,14.0044,144.56,144.49,9.82050615]
[1750718861168,14.0044,144.56,144.52,6.9139]
[1750718861469,7.0918,144.56,144.49,9.82050615]
[1750718861670,7.0918,144.56,144.48,56.88]
[1750718861869,7.0918,144.56,144.5,6.9149]
[1750718862066,6.9135,144.54,144.5,6.9149]
[1750718862261,7.0918,144.56,144.5,6.9149]
[1750718862461,7.0918,144.56,144.49,6.9155]
[1750718862772,6.914,144.53,144.48,56.88]
[1750718862965,7.0918,144.56,144.48,56.88]
[1750718863269,7.0918,144.56,144.49,9.82050615]
[1750718863470,7.0918,144.56,144.51,6.9144]
[1750718863767,14.0043,144.56,144.49,9.82050615]
[1750718864075,14.0043,144.56,144.52,6.914]
[1750718864368,7.0918,144.56,144.48,66.70050615]
[1750718864565,7.0918,144.56,144.5,6.9149]
[1750718864972,7.0918,144.56,144.48,66.70050615]
[1750718865271,597.96,144.58,144.48,66.70050615]
[1750718865574,597.96,144.58,144.5,9.82050615]
[1750718865765,2.2556,144.57,144.51,6.9143]
[1750718865968,6.9129,144.55,144.51,6.9143]
[1750718866161,2.2556,144.57,144.49,9.82050615]
[1750718866362,6.9136,144.54,144.49,6.31296805]
[1750718866668,2.2556,144.57,144.49,6.31296805]
[1750718866870,4.6239,144.56,144.49,13.22826805]
[1750718867062,6.9138,144.53,144.49,13.22826805]
[1750718867263,10.93686805,144.56,144.45,169.0]
[1750718867463,6.9143,144.52,144.46,6.31296805]
[1750718867770,10.93686805,144.56,144.46,6.31296805]
[1750718868067,6.9148,144.51,144.47,6.9164]
[1750718868767,6.9152,144.5,144.46,6.9169]
[1750718869167,6.31296805,144.52,144.4,10.45418893]
[1750718869371,6.31296805,144.52,144.42,6.31296805]
[1750718869563,6.31296805,144.52,144.44,6.31296805]
[1750718869759,56.86,144.54,144.44,6.31296805]
[1750718870269,6.31296805,144.51,144.41,6.10222424]
[1750718870480,5.02828035,144.52,144.4,65.55536805]
[1750718870767,6.31296805,144.5,144.4,65.55536805]
[1750718870965,6.9169,144.47,144.4,65.55536805]
[1750718871273,6.7731,144.49,144.4,65.55536805]
[1750718871472,6.9174,144.46,144.4,65.55536805]
[1750718871665,6.9174,144.46,144.4,59.2424]
[1750718871869,6.9174,144.46,144.4,65.55536805]
[1750718872267,6.9174,144.46,144.42,6.9187]
[1750718872467,6.9168,144.47,144.42,6.9187]
[1750718872662,6.7731,144.49,144.4,65.55536805]
[1750718873068,6.7731,144.49,144.42,6.31296805]
[1750718873976,6.7731,144.49,144.4,65.34462424]
[1750718874163,6.7731,144.49,144.41,6.31296805]
[1750718874565,6.9169,144.47,144.42,6.9189]
[1750718875068,6.9153,144.5,144.43,6.31296805]
[1750718875370,5.03716515,144.52,144.43,6.31296805]
[1750718875371,13.43476805,144.53,144.43,6.31296805]
[1750718875569,6.916,144.49,144.44,6.9177]
[1750718875768,2.81462387,144.51,144.44,6.9177]
[1750718875961,5.03743554,144.52,144.44,6.9177]
[1750718876172,9.12802525,144.51,144.44,6.9177]
[1750718876474,6.9164,144.48,144.44,6.9177]
[1750718877271,6.9167,144.47,144.44,6.9177]
[1750718877576,6.31296805,144.51,144.44,6.9177]
[1750718877779,6.9163,144.48,144.44,6.9177]
[1750718878286,6.31296805,144.51,144.45,6.9176]
[1750718878575,13.43476805,144.53,144.43,6.10222424]
[1750718878880,2.82001377,144.52,144.45,6.9172]
[1750718879073,6.9156,144.5,144.44,12.41519229]
[1750718879775,6.9149,144.51,144.44,12.41519229]
[1750718880574,6.9152,144.5,144.46,6.9168]
[1750718881075,6.9153,144.5,144.46,6.31296805]
[1750718881464,7.1218,144.53,144.44,12.41519229]
[1750718881667,6.9149,144.51,144.47,6.9164]
[1750718882377,661.13296805,144.58,144.48,6.31296805]
[1750718882578,10.10898153,144.57,144.48,6.31296805]
[1750718882771,6.9136,144.54,144.48,6.31296805]
[1750718882975,2.2496,144.57,144.5,6.31296805]
[1750718883380,6.9128,144.55,144.52,6.914]
[1750718883587,2.2496,144.57,144.5,6.31296805]
[1750718883774,4.5048,144.6,144.5,6.31296805]
[1750718883775,4.5048,144.6,144.52,6.31296805]
[1750718884774,6.9121,144.57,144.53,6.9134]
[1750718885081,4.5048,144.6,144.52,6.31296805]
[1750718885275,4.5048,144.6,144.54,6.9129]
[1750718886182,56.86,144.62,144.56,6.31296805]
[1750718886673,56.86,144.62,144.56,13.22496805]
[1750718886878,56.86,144.62,144.56,6.912]
[1750718887578,56.86,144.62,144.55,6.31296805]
[1750718887882,6.9112,144.59,144.55,13.22526805]
[1750718888073,56.86,144.62,144.55,13.22526805]
[1750718888074,56.86,144.62,144.55,6.31296805]
[1750718888271,56.86,144.62,144.53,10.61032424]
[1750718888477,56.86,144.62,144.54,13.22606805]
[1750718888881,56.86,144.62,144.54,6.31296805]
[1750718889079,56.86,144.62,144.55,6.9126]
[1750718889481,6.31296805,144.61,144.52,6.31296805]
[1750718889786,9.13732104,144.61,144.51,6.10222424]
[1750718889985,6.9131,144.55,144.52,6.9142]
[1750718890182,6.31296805,144.61,144.51,12.41519229]
[1750718890377,6.31296805,144.59,144.51,6.31296805]
[1750718890579,6.31296805,144.57,144.48,12.41519229]
[1750718890781,4.6555,144.58,144.5,6.31296805]
[1750718891184,6.9131,144.55,144.51,6.9146]
[1750718891385,4.6555,144.58,144.5,6.31296805]
[1750718891582,6.9141,144.53,144.49,13.01782424]
[1750718891890,8.65786805,144.57,144.48,6.31296805]
[1750718892384,6.9143,144.52,144.49,6.9156]
[1750718892588,2.3449,144.57,144.48,6.31296805]
[1750718892888,6.9136,144.54,144.5,6.9151]
[1750718893090,2.3449,144.57,144.5,6.9151]
[1750718893091,5.17934072,144.57,144.5,6.9151]
[1750718893284,2.3449,144.57,144.5,6.9151]
[1750718893594,6.9136,144.54,144.5,6.9151]
[1750718894492,6.9129,144.55,144.5,6.31296805]
[1750718895082,6.9129,144.55,144.51,6.9143]
[1750718895487,6.9129,144.55,144.5,6.31296805]
[1750718895690,2.3449,144.57,144.52,6.31296805]
[1750718895888,4.6555,144.58,144.52,6.31296805]
[1750718896086,8.67446805,144.61,144.54,6.9131]
[1750718896390,2.3615,144.61,144.54,6.31296805]
[1750718897186,2.3615,144.61,144.55,6.9125]
[1750718897187,6.9112,144.59,144.55,6.9125]
[1750718897388,2.3615,144.61,144.54,6.31296805]
[1750718897589,8.64616805,144.63,144.54,6.31296805]
[1750718897890,2.3332,144.63,144.56,6.31296805]
[1750718898097,2.3332,144.63,144.56,62.23296805]
[1750718898591,6.9092,144.63,144.58,6.31296805]
[1750718898888,4.6733,144.64,144.58,6.31296805]
[1750718898889,2.3357,144.64,144.58,6.31296805]
[1750718899090,2.3357,144.64,144.6,6.91]
[1750718899291,2.3357,144.64,144.58,6.31296805]
[1750718899995,6.31296805,144.67,144.58,6.31296805]
[1750718900394,6.9083,144.65,144.61,6.9099]
[1750718902290,2.2719,144.68,144.62,6.31296805]
[1750718902591,2.2078,144.7,144.64,6.31296805]
[1750718902996,2.242,144.71,144.64,6.31296805]
[1750718903191,6.31296805,144.73,144.64,6.31296805]
[1750718903397,6.9063,144.69,144.64,13.22116805]
[1750718903597,6.31296805,144.73,144.62,2.2039]
[1750718903799,6.9074,144.67,144.62,15.42606805]
[1750718904004,6.31296805,144.71,144.62,6.31296805]
[1750718904296,6.31296805,144.69,144.61,55.92]
[1750718904496,2.2759,144.68,144.61,55.92]
[1750718905098,2.2759,144.68,144.62,6.31296805]
[1750718905497,2.2759,144.68,144.63,6.9086]
[1750718905700,6.31296805,144.71,144.62,6.31296805]
[1750718905893,6.9074,144.67,144.63,6.9088]
[1750718906094,6.31296805,144.71,144.62,6.31296805]
[1750718906502,6.9072,144.67,144.63,6.9089]
[1750718906900,6.31296805,144.71,144.62,6.31296805]
[1750718907200,6.31296805,144.71,144.61,55.92]
[1750718907396,6.31296805,144.71,144.62,6.31296805]
[1750718907593,6.907,144.68,144.64,6.9085]
[1750718907904,6.31296805,144.69,144.61,55.92]
[1750718908107,6.9088,144.64,144.61,55.92]
[1750718908302,2.4082,144.68,144.61,55.92]
[1750718908500,6.43213614,144.78,144.61,6.31296805]
[1750718908699,2.4082,144.71,144.65,6.31296805]
[1750718909191,6.9064,144.69,144.65,13.22086805]
[1750718909398,2.4082,144.71,144.65,6.31296805]
[1750718910299,6.9059,144.7,144.65,6.31296805]
[1750718910501,58.3051,144.74,144.61,55.9]
[1750718910502,58.3051,144.74,144.67,6.31296805]
[1750718910814,29.2616832,144.87,144.67,6.31296805]
[1750718910815,6.31296805,144.86,144.72,6.31296805]
[1750718911002,6.31296805,144.86,144.71,6.31296805]
[1750718911003,4.7109,144.84,144.76,6.31296805]
[1750718911202,4.7109,144.84,144.78,6.9017]
[1750718911203,6.8998,144.83,144.78,6.9017]
[1750718911401,4.7109,144.84,144.76,6.31296805]
[1750718912406,6.9003,144.82,144.76,6.31296805]
[1750718912805,4.7109,144.84,144.74,168.7987]
[1750718913005,4.7109,144.84,144.76,6.31296805]
[1750718913507,4.7109,144.84,144.74,168.7987]
[1750718913508,6.8996,144.83,144.78,6.31296805]
[1750718914008,9.2697,144.84,144.8,6.9008]
[1750718915507,2.3704,144.84,144.81,6.9004]
[1750718915704,6.8986,144.85,144.81,6.9004]
[1750718916105,2.2933,144.86,144.82,6.8996]
[1750718916106,6.8984,144.86,144.82,6.8996]
[1750718916303,2.221,144.87,144.82,6.8996]
[1750718916304,2.221,144.87,144.82,6.31296805]
[1750718916900,6.31296805,144.9,144.82,6.31296805]
[1750718917098,6.8967,144.89,144.85,6.8982]
[1750718917301,57.0838,144.91,144.84,6.31296805]
[1750718918206,6.31296805,144.89,144.8,6.31296805]
[1750718918613,6.31296805,144.89,144.82,6.8995]
[1750718918813,6.31296805,144.89,144.8,6.31296805]
[1750718919316,6.8985,144.86,144.82,6.8996]
[1750718919513,57.0838,144.91,144.8,6.31296805]
[1750718919810,6.31296805,144.9,144.8,6.31296805]
[1750718920411,6.8984,144.86,144.81,6.9001]
[1750718920607,6.31296805,144.9,144.81,6.9001]
[1750718921206,6.31296805,144.9,144.8,6.31296805]
[1750718921407,6.31296805,144.9,144.82,6.31296805]
[1750718921914,6.31296805,144.9,144.8,6.31296805]
[1750718922605,40.87992819,145.04,144.84,6.31296805]
[1750718922812,6.31296805,144.96,144.86,6.31296805]
[1750718923010,6.31296805,144.96,144.86,61.17296805]
[1750718923211,6.31296805,144.94,144.86,61.17296805]
[1750718923409,6.31296805,144.94,144.86,68.07056805]
[1750718923410,6.8959,144.91,144.86,68.07056805]
[1750718923614,6.8959,144.91,144.86,61.17296805]
[1750718923814,2.2401,144.95,144.83,165.7]
[1750718923815,6.31296805,144.92,144.83,165.7]
[1750718924010,54.86,144.92,144.83,165.7]
[1750718924317,54.86,144.92,144.83,172.01296805]
[1750718924518,2.2401,144.95,144.87,6.31296805]
[1750718924717,2.2401,144.95,144.85,6.31296805]
[1750718924718,6.31296805,144.94,144.85,6.31296805]
[1750718925017,6.31296805,144.94,144.86,6.8978]
[1750718925517,6.31296805,144.93,144.84,4.6059]
[1750718925817,2.2401,144.95,144.84,10.91886805]
[1750718926013,6.31296805,144.93,144.84,10.91886805]
[1750718926214,6.8959,144.91,144.87,6.8975]
[1750718926715,6.8969,144.89,144.85,6.8983]
[1750718927019,6.31296805,144.94,144.84,4.6059]
[1750718927311,2.2401,144.95,144.88,6.8968]
[1750718927312,6.8955,144.92,144.88,6.8968]
[1750718927515,2.2401,144.95,144.85,6.31296805]
[1750718927717,6.8945,144.94,144.9,6.8958]
[1750718927912,6.8945,144.94,144.87,61.15296805]
[1750718928120,4.7044,144.97,144.89,6.31296805]
[1750718928321,4.7044,144.97,144.87,54.84]
[1750718928322,4.7044,144.97,144.88,6.31296805]
[1750718928721,6.8945,144.94,144.9,6.896]
[1750718929018,11.01736805,144.97,144.88,6.31296805]
[1750718929219,2.3181,144.97,144.9,6.31296805]
[1750718929405,6.31296805,144.99,144.9,6.31296805]
[1750718929613,54.84,145.0,144.9,6.31296805]
[1750718929808,54.84,145.0,144.92,6.31296805]
[1750718930014,54.84,145.0,144.95,6.8936]
[1750718930229,2.2438,145.01,144.94,6.31296805]
[1750718930422,6.8921,144.99,144.95,6.8934]
[1750718930719,2.2438,145.01,144.94,6.31296805]
[1750718930920,2.3465,145.02,144.98,6.8921]
[1750718930921,6.8905,145.02,144.98,6.8921]
[1750718931109,6.8905,145.02,144.96,6.31296805]
[1750718931110,2.3191,145.04,144.96,6.31296805]
[1750718931313,54.84,145.05,144.96,6.31296805]
[1750718931619,54.84,145.05,144.93,54.84]
[1750718931818,6.31296805,145.0,144.93,54.84]
[1750718932016,6.8923,144.98,144.94,6.8942]
[1750718932222,54.84,145.05,144.93,54.84]
[1750718932814,6.31296805,144.99,144.92,165.2]
[1750718933218,6.31296805,145.01,144.92,165.2]
[1750718933821,6.31296805,145.02,144.93,6.31296805]
[1750718934007,6.31296805,145.03,144.93,6.31296805]
[1750718934212,6.8924,144.98,144.94,6.8938]
[1750718935019,6.8928,144.97,144.93,6.8945]
[1750718935217,6.31296805,145.01,144.92,4.5523]
[1750718935420,6.31296805,144.99,144.9,6.31296805]
[1750718935614,6.31296805,145.01,144.92,6.31296805]
[1750718935809,10.97566805,145.01,144.92,6.31296805]
[1750718936127,6.8941,144.95,144.91,6.8956]
[1750718936314,6.31296805,144.98,144.91,6.8956]
[1750718936515,6.31296805,144.98,144.89,61.13296805]
[1750718936725,13.7763,145.07,144.91,6.31296805]
[1750718936916,6.31296805,144.98,144.89,61.13296805]
[1750718937226,6.894,144.95,144.89,61.13296805]
[1750718937418,7.0234,145.06,144.89,61.13296805]
[1750718937419,54.82,145.0,144.89,54.82]
[1750718937618,6.893,144.97,144.93,6.8945]
[1750718938225,6.893,144.97,144.91,6.31296805]
[1750718938226,7.0234,144.99,144.91,6.31296805]
[1750718938613,2.3151,144.99,144.93,6.31296805]
[1750718939014,4.7122,145.06,144.9,6.31296805]
[1750718939227,13.34026805,145.06,144.96,6.31296805]
[1750718939531,6.8904,145.02,144.98,6.8919]
[1750718939825,54.82,145.08,144.97,6.31296805]
[1750718940029,6.31296805,145.06,144.97,6.31296805]
[1750718940324,13.29186805,145.07,144.97,6.31296805]
[1750718940826,6.8898,145.04,144.97,6.31296805]
[1750718941016,2.2711,145.07,144.99,6.31296805]
[1750718941613,6.31296805,145.05,144.93,598.0648]
[1750718941815,6.8901,145.03,144.99,6.8915]
[1750718942615,6.31296805,145.05,144.96,6.31296805]
[1750718942828,6.31296805,145.03,144.93,598.0648]
[1750718943122,6.8916,145.0,144.96,6.8932]
[1750718943315,61.11296805,145.03,144.96,6.8932]
[1750718943517,61.11296805,145.03,144.95,6.8935]
[1750718943922,61.11296805,145.03,144.84,595.64]
[1750718943923,6.31296805,144.99,144.84,595.64]
[1750718944120,4.6157,145.04,144.84,595.64]
[1750718944121,6.31296805,144.97,144.88,10.90756805]
[1750718944627,6.31296805,144.95,144.88,2.2138]
[1750718945126,6.31296805,144.95,144.85,2.3808]
[1750718945327,6.31296805,144.93,144.85,2.3808]
[1750718945523,9.71153937,144.97,144.85,2.3808]
[1750718945719,4.6625,144.97,144.88,6.31296805]
[1750718945925,57.0998,144.98,144.9,6.31296805]
[1750718946222,63.9923,144.98,144.9,6.31296805]
[1750718946425,57.0998,144.98,144.9,6.31296805]
[1750718946721,57.0998,144.98,144.95,6.8936]
[1750718947130,2.2998,144.98,144.95,6.8936]
[1750718947721,2.2998,144.98,144.96,6.8932]
[1750718948221,9.1922,144.98,144.95,6.8936]
[1750718948622,2.2998,144.98,144.95,6.8935]
[1750718949030,2.2998,144.98,144.91,2.2706]
[1750718949221,6.31296805,144.98,144.89,2.3698]
[1750718949422,6.31296805,144.98,144.9,6.31296805]
[1750718949729,6.8936,144.96,144.92,6.8948]
[1750718949937,6.31296805,144.98,144.89,10.95336805]
[1750718950325,53.74,144.99,144.91,6.31296805]
[1750718951033,60.6318,144.99,144.91,6.31296805]
[1750718951328,6.8928,144.97,144.93,6.8945]
[1750718951524,53.74,144.99,144.91,6.31296805]
[1750718952031,6.8927,144.98,144.94,6.8938]
[1750718952234,53.74,145.0,144.9,2.3567]
[1750718952235,53.74,145.0,144.93,6.31296805]
[1750718952920,60.6317,145.0,144.96,6.8931]
[1750718953328,53.74,145.0,144.93,6.31296805]
[1750718953532,53.74,145.0,144.93,6.8947]
[1750718953832,6.31296805,144.99,144.91,6.31296805]
[1750718954020,6.31296805,144.99,144.93,6.8943]
[1750718954219,6.31296805,144.99,144.91,6.31296805]
[1750718954429,5.09804611,144.98,144.91,6.31296805]
[1750718954629,6.8926,144.98,144.91,6.31296805]
[1750718954829,6.31296805,145.06,144.97,6.31296805]
[1750718955034,5.09568495,145.05,144.99,6.31296805]
[1750718955236,2.83514627,145.07,144.99,6.31296805]
[1750718955429,4.98271826,145.08,144.99,6.31296805]
[1750718955430,5.09283358,145.06,144.99,6.31296805]
[1750718955630,2.83390032,145.07,144.99,6.31296805]
[1750718955836,69.23906805,145.09,144.99,6.31296805]
[1750718956035,7.92601696,145.08,144.99,6.31296805]
[1750718956339,7.92800947,145.07,144.99,6.31296805]
[1750718956642,62.35196805,145.09,145.01,6.31296805]
[1750718956828,7.93145857,145.08,145.01,6.31296805]
[1750718957032,7.93145857,145.08,144.98,6.9606]
[1750718957033,5.09583673,145.07,144.99,6.31296805]
[1750718957337,56.039,145.09,144.98,6.9606]
[1750718957338,6.8874,145.09,145.05,6.8888]
[1750718957628,6.31296805,145.07,144.98,13.27356805]
[1750718957834,6.31296805,145.07,145.04,6.8894]
[1750718958023,6.31296805,145.07,144.98,13.27356805]
[1750718958426,6.8876,145.08,145.04,6.8891]
[1750718959032,6.8876,145.08,145.0,6.31296805]
[1750718959631,13.20056805,145.08,145.04,6.889]